bitfinex/quotes_ETHUSD_20240925
["timestamp","ask_amount","ask_price","bid_price","bid_amount"]
[1727228576296,3.74575,2669.7,2669.0,5.00804387]
[1727228576511,3.74565,2669.8,2669.1,3.74657]
[1727228576745,7.49137,2669.8,2669.1,3.78657613]
[1727228577047,3.74629,2669.4,2669.1,0.04000613]
[1727228577194,3.74591,2669.6,2669.1,0.04000613]
[1727228577636,3.74566,2669.8,2669.1,3.78656613]
[1727228577891,7.49139,2669.8,2669.1,3.78656613]
[1727228578196,0.2063,2670.0,2669.1,3.78656613]
[1727228578197,3.74548,2669.9,2669.3,3.74629]
[1727228578444,3.74537,2670.0,2669.3,3.74619]
[1727228578736,0.2063,2670.4,2669.5,4.57068]
[1727228578737,3.74525,2670.1,2669.5,4.57068]
[1727228579031,3.95111,2670.4,2669.5,4.57068]
[1727228579032,3.74533,2670.0,2669.5,0.8247]
[1727228579235,0.2063,2670.4,2669.6,0.03911035]
[1727228579236,3.74573,2669.7,2669.6,0.03911035]
[1727228579600,3.74602,2669.5,2669.2,0.8247]
[1727228579800,3.74616,2669.4,2669.2,0.8247]
[1727228580036,3.74602,2669.5,2669.3,0.03943291]
[1727228580697,3.74616,2669.4,2669.3,0.03943291]
[1727228581095,3.74616,2669.4,2668.9,0.8247]
[1727228581300,3.74616,2669.4,2669.0,0.04259522]
[1727228581628,0.2063,2669.8,2669.0,0.04259522]
[1727228581629,3.74658,2669.1,2669.0,0.04259522]
[1727228581815,3.74652,2669.2,2668.6,0.8247]
[1727228582023,7.49363,2669.0,2668.6,0.8247]
[1727228582237,3.74679,2669.0,2668.7,0.04007823]
[1727228582558,7.49362,2669.0,2668.7,0.04007823]
[1727228582720,3.74689,2668.9,2668.7,0.04007823]
[1727228583253,3.747,2668.8,2668.7,0.04007823]
[1727228583425,0.749368,2668.9,2668.7,0.04007823]
[1727228583626,3.74679,2669.0,2668.4,3.7969155]
[1727228583832,3.74649,2669.2,2668.4,3.7969155]
[1727228584031,3.74618,2669.4,2668.8,0.8247]
[1727228584238,3.74618,2669.4,2668.8,4.57168]
[1727228584439,7.49246,2669.4,2668.9,0.03986309]
[1727228584662,3.74618,2669.4,2668.9,0.03986309]
[1727228585028,3.7463,2669.3,2668.9,0.03986309]
[1727228585393,3.74607,2669.5,2668.9,0.03986309]
[1727228587124,0.2063,2669.8,2668.9,0.03986309]
[1727228587383,3.74633,2669.3,2668.9,0.03986309]
[1727228588029,3.74628,2669.4,2668.9,0.03986309]
[1727228588462,3.74591,2669.6,2668.9,0.03986309]
[1727228589074,3.74619,2669.4,2668.9,0.03986309]
[1727228589280,3.74631,2669.3,2668.9,0.03986309]
[1727228589779,3.74652,2669.2,2668.9,0.03986309]
[1727228590542,3.74622,2669.4,2668.9,3.78672309]
[1727228590745,3.74622,2669.4,2668.9,0.03986309]
[1727228591172,3.74512,2670.2,2669.1,0.8247]
[1727228591480,3.74512,2670.2,2669.0,3.82156148]
[1727228591481,3.74512,2670.2,2669.6,4.57049]
[1727228591679,3.74482,2670.4,2669.7,0.03900844]
[1727228591887,3.74492,2670.3,2669.8,3.74551]
[1727228592042,0.2063,2670.8,2669.9,0.03879346]
[1727228592043,3.74453,2670.6,2669.9,0.03879346]
[1727228592242,3.74453,2670.6,2670.0,0.37842835]
[1727228592547,3.74453,2670.6,2670.1,0.04118729]
[1727228593043,3.74453,2670.6,2669.8,3.74549]
[1727228593044,3.74477,2670.4,2670.2,0.04107215]
[1727228593248,3.74477,2670.4,2669.8,7.491]
[1727228593469,3.74477,2670.4,2669.9,3.78685759]
[1727228593781,0.2063,2670.8,2670.1,3.74514]
[1727228593782,3.74431,2670.8,2670.1,3.74514]
[1727228593991,3.74442,2670.7,2670.1,3.74514]
[1727228594155,3.74442,2670.7,2670.2,0.03833401]
[1727228594356,3.74366,2671.2,2670.3,0.8198]
[1727228594357,3.7437,2671.2,2670.3,0.8198]
[1727228594580,3.7437,2671.2,2670.6,7.48885]
[1727228594741,3.7437,2671.2,2670.6,7.48876]
[1727228594941,3.74283,2671.8,2670.8,0.8198]
[1727228594942,3.74286,2671.8,2670.8,0.8198]
[1727228595149,0.4323137,2672.0,2670.9,0.07487008]
[1727228595358,3.74321,2671.5,2670.9,0.0469775]
[1727228595646,3.74321,2671.5,2670.9,3.7910175]
[1727228595846,3.74321,2671.5,2670.9,4.25958658]
[1727228596088,3.74348,2671.4,2670.9,0.0469775]
[1727228596393,3.74355,2671.3,2670.9,0.0469775]
[1727228596698,3.74375,2671.2,2670.9,0.0469775]
[1727228597022,0.2063,2671.7,2670.9,0.0469775]
[1727228597023,3.74379,2671.1,2670.9,0.0469775]
[1727228597297,3.74379,2671.1,2669.3,7.49]
[1727228597298,3.7447,2670.5,2670.0,0.8198]
[1727228597458,3.7444,2670.7,2670.1,3.78625729]
[1727228599689,3.74475,2670.4,2670.1,0.04118729]
[1727228599901,3.74463,2670.5,2670.1,0.04118729]
[1727228600308,3.74503,2670.2,2670.1,0.04118729]
[1727228600798,3.74503,2670.2,2669.5,3.74595]
[1727228600799,3.74542,2670.0,2669.4,0.8198]
[1727228601163,3.74508,2670.2,2669.4,0.8198]
[1727228601164,3.74508,2670.2,2669.6,3.74587]
[1727228601771,7.49023,2670.2,2669.6,3.74587]
[1727228602169,0.374478,2670.3,2669.6,3.74578]
[1727228602492,3.74482,2670.4,2669.6,3.74578]
[1727228602493,3.74482,2670.4,2669.7,3.74573]
[1727228602660,3.74498,2670.3,2669.6,3.74578]
[1727228602863,3.74482,2670.4,2669.8,3.74554]
[1727228603197,3.74491,2670.3,2669.8,3.74554]
[1727228603696,3.74519,2670.1,2669.4,0.8198]
[1727228604010,3.74547,2669.9,2669.4,0.8198]
[1727228604659,3.74547,2669.9,2669.1,3.74652]
[1727228604660,3.74601,2669.5,2669.1,0.8198]
[1727228604868,3.74582,2669.7,2669.1,0.8198]
[1727228605102,7.49167,2669.7,2669.1,0.8198]
[1727228605308,3.74552,2669.9,2669.1,4.56636]
[1727228605463,3.74552,2669.9,2669.3,3.74621]
[1727228605664,0.2063,2670.7,2669.6,3.74574]
[1727228605909,3.745,2670.3,2669.7,3.7457]
[1727228607396,7.49001,2670.3,2669.7,3.7457]
[1727228607798,3.74513,2670.2,2669.6,3.74574]
[1727228608012,3.74518,2670.1,2669.6,3.74574]
[1727228608699,3.74518,2670.1,2669.7,0.04105781]
[1727228609415,0.2063,2671.5,2670.0,0.8224]
[1727228609563,0.2063,2671.8,2670.8,0.8224]
[1727228609901,0.2063,2671.8,2670.1,0.8224]
[1727228609902,3.74458,2670.6,2670.1,0.8224]
[1727228610260,3.74465,2670.5,2670.1,0.8224]
[1727228610464,0.2063,2671.1,2670.1,0.8224]
[1727228610664,3.74499,2670.3,2670.1,0.8224]
[1727228610990,3.74424,2670.8,2670.1,0.8224]
[1727228610991,3.74449,2670.6,2670.1,0.8224]
[1727228611191,3.74503,2670.2,2670.1,0.8224]
[1727228611366,3.74503,2670.2,2669.8,0.8224]
[1727228611563,0.60129,2671.1,2670.3,0.8224]
[1727228611564,0.39499,2671.1,2670.3,0.8224]
[1727228611786,3.74428,2670.8,2670.3,0.8224]
[1727228612580,7.48802,2671.0,2670.3,4.56728]
[1727228612787,8.236822,2671.0,2670.3,4.56728]
[1727228612984,0.748802,2671.0,2670.3,0.8224]
[1727228613317,3.74443,2670.7,2670.3,0.8224]
[1727228613619,0.2063,2671.4,2670.3,0.8224]
[1727228613620,3.7441,2670.9,2670.3,0.8224]
[1727228613834,3.74355,2671.3,2670.4,0.07489436]
[1727228613987,3.74363,2671.2,2670.6,3.74439]
[1727228614494,3.74355,2671.3,2670.7,3.74422]
[1727228614696,3.74355,2671.3,2670.9,0.8224]
[1727228615082,3.74322,2671.5,2670.9,4.56642]
[1727228615391,3.74322,2671.5,2670.9,0.8224]
[1727228615777,3.74336,2671.4,2670.9,0.8224]
[1727228616196,3.74351,2671.3,2670.9,0.8224]
[1727228616519,7.48652,2671.5,2670.9,0.8224]
[1727228616826,3.74322,2671.5,2670.9,4.56644]
[1727228617181,3.74242,2672.1,2671.2,0.8224]
[1727228617182,3.74244,2672.1,2671.2,0.8224]
[1727228617385,3.74258,2672.0,2671.4,3.74332]
[1727228617808,4.116684,2672.1,2671.3,0.07486146]
[1727228617809,3.74266,2671.9,2671.3,0.07486146]
[1727228618016,3.74266,2671.9,2671.3,3.81832146]
[1727228618230,3.7912355,2672.5,2671.4,0.8224]
[1727228618231,3.74212,2672.3,2671.4,0.8224]
[1727228618389,3.74234,2672.2,2671.5,0.07484954]
[1727228618595,3.74234,2672.2,2671.4,8.30898]
[1727228618596,3.74234,2672.2,2671.4,4.56566]
[1727228619127,3.74274,2671.9,2671.4,0.8224]
[1727228620791,3.7428,2671.8,2671.4,0.8224]
[1727228621428,3.74274,2671.9,2671.4,0.8224]
[1727228621629,3.74321,2671.5,2671.0,0.8224]
[1727228622136,4.117014,2671.9,2671.2,3.74354]
[1727228622437,3.74274,2671.9,2671.2,3.74354]
[1727228623629,7.48551,2671.9,2671.2,3.74354]
[1727228623831,7.48551,2671.9,2671.3,0.04932107]
[1727228623997,3.74279,2671.8,2671.2,3.74354]
[1727228624413,0.0442159,2672.1,2671.3,0.04932107]
[1727228624621,3.74315,2671.6,2671.3,0.04932107]
[1727228624941,3.7491982,2671.6,2671.4,0.04917466]
[1727228625240,3.74321,2671.5,2671.4,0.04917466]
[1727228625424,3.74321,2671.5,2671.0,0.8224]
[1727228625623,3.74321,2671.5,2671.4,0.04917466]
[1727228625794,3.74321,2671.5,2671.0,0.8224]
[1727228625795,3.74361,2671.3,2671.0,0.8224]
[1727228626210,3.74374,2671.2,2671.1,0.04961391]
[1727228626644,3.74361,2671.3,2670.7,0.7826]
[1727228626801,3.74456,2670.6,2670.2,0.7826]
[1727228628238,0.2123482,2671.3,2670.2,0.7826]
[1727228628239,3.74391,2671.0,2670.3,0.7826]
[1727228628410,3.74391,2671.0,2670.4,3.81951436]
[1727228630004,3.74421,2670.8,2670.4,0.07488436]
[1727228631044,0.0060482,2671.3,2670.3,0.7826]
[1727228631199,3.74461,2670.5,2670.3,0.7826]
[1727228631542,3.74475,2670.4,2670.3,0.7826]
[1727228631748,3.74461,2670.5,2670.3,0.7826]
[1727228631899,3.74419,2670.8,2670.3,0.7826]
[1727228632215,3.74409,2670.9,2670.3,0.7826]
[1727228632408,3.74434,2670.7,2670.3,0.7826]
[1727228633000,7.48879,2670.7,2670.3,0.7826]
[1727228633332,3.74434,2670.7,2670.3,0.7826]
[1727228636345,0.0060482,2671.3,2670.3,4.52745]
[1727228636510,3.74402,2671.0,2670.5,0.7826]
[1727228637055,3.74443,2670.7,2670.5,0.7826]
[1727228637405,7.4889,2670.7,2670.5,0.7826]
[1727228637643,3.74447,2670.6,2670.5,0.7826]
[1727228638246,3.74476,2670.4,2670.0,0.7826]
[1727228638749,3.74476,2670.4,2670.1,0.05977038]
[1727228639441,3.74393,2671.0,2670.3,3.74485]
[1727228639630,3.74393,2671.0,2670.4,3.81961466]
[1727228639824,3.74393,2671.0,2670.4,3.87884777]
[1727228641616,3.74431,2670.8,2670.4,0.05923311]
[1727228641829,3.74449,2670.6,2670.4,0.05923311]
[1727228642058,3.74449,2670.6,2670.2,0.77]
[1727228642270,3.74449,2670.6,2670.5,0.05904471]
[1727228642435,3.74449,2670.6,2670.2,0.77]
[1727228642924,3.74449,2670.6,2670.3,0.05940285]
[1727228643120,3.74449,2670.6,2670.2,0.77]
[1727228643443,3.74449,2670.6,2670.3,0.05940285]
[1727228643845,3.74449,2670.6,2670.2,0.77]
[1727228644021,3.74449,2670.6,2670.4,0.05922378]
[1727228644221,3.74449,2670.6,2670.3,0.05940285]
[1727228644462,3.74449,2670.6,2670.5,0.05904471]
[1727228644669,3.74449,2670.6,2670.4,0.05922378]
[1727228644974,3.74449,2670.6,2670.5,0.05904471]
[1727228645319,3.74449,2670.6,2669.5,3.0]
[1727228645320,3.74533,2670.0,2669.7,0.77]
[1727228645526,3.74505,2670.2,2669.8,0.04933508]
[1727228645759,7.49019,2670.2,2669.7,0.77]
[1727228645959,7.49019,2670.2,2669.9,0.05410736]
[1727228646166,7.49019,2670.2,2669.7,0.77]
[1727228646167,7.49019,2670.2,2669.8,0.05426859]
[1727228646465,7.49019,2670.2,2670.0,0.05394615]
[1727228646630,7.49019,2670.2,2669.9,0.05410736]
[1727228646832,7.49019,2670.2,2670.1,0.05378494]
[1727228647075,7.49019,2670.2,2670.0,0.05394615]
[1727228647243,7.49019,2670.2,2670.1,0.05378494]
[1727228647244,3.74505,2670.2,2670.1,0.05378494]
[1727228647627,3.74505,2670.2,2669.7,0.77]
[1727228647824,3.74505,2670.2,2670.1,0.05378494]
[1727228648028,3.74505,2670.2,2669.7,0.77]
[1727228648262,3.74505,2670.2,2670.1,0.05378494]
[1727228648863,3.74505,2670.2,2669.7,4.51573]
[1727228649052,3.74505,2670.2,2670.1,0.05378494]
[1727228649566,3.74505,2670.2,2669.7,0.77]
[1727228649731,3.74505,2670.2,2670.1,0.05378494]
[1727228649926,3.74505,2670.2,2669.7,0.77]
[1727228649927,3.7454,2670.0,2669.7,0.77]
[1727228650144,3.7454,2670.0,2669.8,0.05426859]
[1727228650346,7.4908,2670.0,2669.7,0.77]
[1727228650540,3.74556,2669.9,2669.8,0.05426859]
[1727228650742,3.74556,2669.9,2669.6,0.39187981]
[1727228650944,3.74556,2669.9,2669.7,0.05442983]
[1727228651631,3.7454,2670.0,2669.7,0.05442983]
[1727228651632,3.74559,2669.8,2669.7,0.05442983]
[1727228652630,8.06537722,2669.8,2669.7,0.05442983]
[1727228652838,8.61537722,2669.8,2669.7,0.05442983]
[1727228653120,3.74672,2669.0,2668.9,0.4073195]
[1727228653729,3.74672,2669.0,2668.9,0.45375299]
[1727228653929,3.74672,2669.0,2668.9,0.4073195]
[1727228654337,3.74658,2669.1,2668.9,0.45375299]
[1727228654945,7.49327,2669.1,2668.9,0.45375299]
[1727228655145,3.74658,2669.1,2668.9,0.07855299]
[1727228655368,3.74672,2669.0,2668.9,0.07855299]
[1727228657994,4.49605,2669.0,2668.9,0.07855299]
[1727228658192,4.49605,2669.0,2668.9,0.0321195]
[1727228658374,8.61673222,2669.0,2668.9,0.0321195]
[1727228659143,8.61673222,2669.0,2668.1,0.0381677]
[1727228659144,3.95414,2668.2,2668.1,0.0381677]
[1727228659350,3.95414,2668.2,2668.1,0.08004635]
[1727228659548,3.95414,2668.2,2668.1,0.0381677]
[1727228659549,4.50414,2668.2,2668.1,0.0381677]
[1727228660947,5.66576222,2668.2,2668.1,0.0381677]
[1727228661385,9.03014444,2668.2,2668.1,0.0381677]
[1727228662189,12.03014444,2668.2,2668.1,0.0381677]
[1727228665469,8.66576222,2668.2,2668.1,0.0381677]
[1727228665679,12.55602797,2668.2,2668.1,0.0381677]
[1727228665861,12.55602797,2668.2,2667.3,0.0381677]
[1727228665862,3.55,2668.1,2667.3,0.0381677]
[1727228666188,4.50526,2667.4,2667.3,0.0381677]
[1727228667861,7.86964222,2667.4,2667.3,0.0381677]
[1727228668163,10.86964222,2667.4,2667.3,0.0381677]
[1727228669754,7.50526,2667.4,2667.3,0.0381677]
[1727228669980,8.630668,2667.4,2667.3,0.0381677]
[1727228671399,11.94505022,2667.4,2667.3,0.0381677]
[1727228672024,8.580668,2667.4,2667.3,0.0381677]
[1727228672384,8.580668,2667.4,2666.5,0.0381677]
[1727228672385,6.75009,2666.6,2666.5,0.0381677]
[1727228672607,7.820724,2666.6,2666.5,0.0381677]
[1727228673618,8.370724,2666.6,2666.5,0.0381677]
[1727228673780,11.73510622,2666.6,2666.5,0.0381677]
[1727228675183,8.370724,2666.6,2666.5,0.0381677]
[1727228675400,11.73510622,2666.6,2666.5,0.0381677]
[1727228677180,7.820724,2666.6,2666.5,0.0381677]
[1727228677501,6.75009,2666.6,2666.5,0.0381677]
[1727228678524,7.30009,2666.6,2666.5,0.0381677]
[1727228679021,10.66447222,2666.6,2666.5,0.0381677]
[1727228681519,7.30009,2666.6,2666.5,0.0381677]
[1727228681727,8.425724,2666.6,2666.5,0.0381677]
[1727228682330,6.75009,2666.6,2666.5,0.0381677]
[1727228682495,3.75009,2666.6,2666.5,0.0381677]
[1727228683620,4.30009,2666.6,2666.5,0.0381677]
[1727228683827,4.30009,2666.6,2666.5,0.08000758]
[1727228684020,4.30009,2666.6,2666.5,0.0381677]
[1727228685297,5.105094,2666.6,2666.5,0.0381677]
[1727228689432,4.30009,2666.6,2666.5,0.0381677]
[1727228692031,3.75009,2666.6,2666.5,0.90849858]
[1727228693821,3.74995,2666.7,2666.5,0.90849858]
[1727228694554,3.75009,2666.6,2666.5,0.90849858]
[1727228695526,4.30009,2666.6,2666.5,0.90849858]
[1727228696899,3.0,2667.1,2666.5,0.90849858]
[1727228697207,1.331708,2667.4,2666.5,0.90849858]
[1727228697208,3.74962,2667.0,2666.5,0.90849858]
[1727228697633,3.74962,2667.0,2666.6,0.8285]
[1727228697943,3.74962,2667.0,2666.6,0.86721892]
[1727228699036,3.74947,2667.1,2666.7,0.7587]
[1727228699248,3.74947,2667.1,2666.7,0.79994921]
[1727228699417,3.74955,2667.0,2666.7,0.79994921]
[1727228700843,3.74955,2667.0,2666.7,0.04124921]
[1727228700844,4.29981,2666.8,2666.7,0.04124921]
[1727228701056,3.55,2666.8,2666.5,0.0381677]
[1727228701369,7.11405222,2666.9,2666.5,0.0381677]
[1727228701370,4.30009,2666.6,2666.5,0.0381677]
[1727228703217,7.50639,2666.6,2666.5,0.0381677]
[1727228703615,10.87077222,2666.6,2666.5,0.0381677]
[1727228704753,7.30121,2665.8,2665.7,0.04721147]
[1727228704921,8.612738,2665.8,2665.7,0.04721147]
[1727228705117,7.30121,2665.8,2665.7,0.04721147]
[1727228705547,3.75121,2665.8,2665.7,0.04721147]
[1727228705918,3.75121,2665.8,2665.7,0.09389657]
[1727228705919,4.30121,2665.8,2665.7,0.09389657]
[1727228706345,4.30121,2665.8,2665.7,0.04721147]
[1727228706822,8.481545,2665.8,2665.7,0.04721147]
[1727228707635,8.687845,2665.8,2665.7,0.04721147]
[1727228707965,12.05222722,2665.8,2665.7,0.04721147]
[1727228711536,11.50222722,2665.8,2665.7,0.04721147]
[1727228713054,12.05222722,2665.8,2665.7,0.04721147]
[1727228713382,3.75087,2666.1,2665.7,0.80591147]
[1727228713716,3.75108,2665.9,2665.7,0.80591147]
[1727228713889,3.75108,2665.9,2665.8,0.04050919]
[1727228714373,3.7509,2666.1,2665.7,0.80591147]
[1727228714577,3.7509,2666.1,2665.8,0.04050919]
[1727228714936,3.75056,2666.3,2665.7,0.80591147]
[1727228715272,3.75056,2666.3,2665.8,0.88006072]
[1727228715484,3.7508,2666.1,2665.8,0.88006072]
[1727228716936,3.75006,2666.7,2665.8,0.88006072]
[1727228717154,3.74878,2667.6,2665.8,0.88006072]
[1727228717155,3.7495,2667.1,2666.1,0.8328]
[1727228717341,3.75045,2666.4,2666.1,0.8328]
[1727228717638,3.75051,2666.3,2666.2,0.04672174]
[1727228718677,3.75051,2666.3,2666.1,0.8328]
[1727228718876,3.75045,2666.4,2666.1,0.8328]
[1727228719079,3.75065,2666.2,2666.1,0.8328]
[1727228719458,0.55,2665.8,2665.7,0.04721147]
[1727228719643,7.30121,2665.8,2665.7,0.04721147]
[1727228720976,3.75121,2665.8,2665.7,0.04721147]
[1727228721178,10.50174,2666.1,2665.7,0.88001147]
[1727228721341,3.75094,2666.0,2665.7,0.88001147]
[1727228721541,3.7511,2665.9,2665.7,0.88001147]
[1727228721743,7.50231,2665.9,2665.7,0.88001147]
[1727228721988,3.75121,2665.8,2665.7,0.88001147]
[1727228722344,3.7511,2665.9,2665.7,0.88001147]
[1727228722649,3.75082,2666.1,2665.7,0.88001147]
[1727228723063,3.75094,2666.0,2665.7,0.88001147]
[1727228723654,3.75117,2665.9,2665.7,0.88001147]
[1727228724657,3.75121,2665.8,2665.7,0.88001147]
[1727228726958,4.30121,2665.8,2665.7,0.88001147]
[1727228727159,4.30121,2665.8,2665.7,0.04721147]
[1727228727486,7.30121,2665.8,2665.7,0.04721147]
[1727228727791,8.76351622,2665.8,2665.7,0.04721147]
[1727228730487,8.76351622,2665.8,2664.9,0.0381677]
[1727228730488,7.30234,2665.0,2664.9,0.0381677]
[1727228731984,7.50864,2665.0,2664.9,0.0381677]
[1727228732195,3.75347,2664.2,2664.1,0.0381677]
[1727228732493,4.30347,2664.2,2664.1,0.07944958]
[1727228732790,7.66785222,2664.2,2664.1,0.0381677]
[1727228732989,11.80997044,2664.2,2664.1,0.0381677]
[1727228733284,8.44558822,2664.2,2664.1,0.0381677]
[1727228733498,11.80997044,2664.2,2664.1,0.0381677]
[1727228734292,8.44558822,2664.2,2664.1,0.0381677]
[1727228734510,7.30347,2664.2,2664.1,0.0381677]
[1727228735888,3.75347,2664.2,2664.1,0.0381677]
[1727228736452,3.75347,2664.2,2664.1,0.08417206]
[1727228736990,3.75333,2664.3,2664.1,0.08417206]
[1727228737169,3.75347,2664.2,2664.1,0.08417206]
[1727228738259,8.05415,2664.2,2664.1,0.08417206]
[1727228738459,8.05415,2664.2,2664.1,0.0381677]
[1727228739152,6.75347,2664.2,2664.1,0.0381677]
[1727228739355,3.75347,2664.2,2664.1,0.0381677]
[1727228739559,3.75347,2664.2,2664.1,0.08417206]
[1727228739772,3.75347,2664.2,2664.1,0.0381677]
[1727228739968,3.75347,2664.2,2664.1,0.08417206]
[1727228740185,3.75347,2664.2,2664.1,0.0381677]
[1727228740369,5.05415,2664.2,2664.1,0.08417206]
[1727228740581,8.05415,2664.2,2664.1,0.0381677]
[1727228745492,8.26045,2664.2,2664.1,0.0381677]
[1727228745805,8.26045,2664.2,2663.3,0.0381677]
[1727228745806,7.30459,2663.4,2663.3,0.0381677]
[1727228746173,7.51089,2663.4,2663.3,0.0381677]
[1727228746702,7.51089,2663.4,2662.6,0.0381677]
[1727228746703,3.7563,2663.4,2662.6,0.0381677]
[1727228746873,4.30558,2662.7,2662.6,0.0381677]
[1727228747096,4.30558,2662.7,2662.6,0.07700624]
[1727228747440,4.30558,2662.7,2662.6,0.0381677]
[1727228748098,7.30558,2662.7,2662.6,0.0381677]
[1727228748299,4.30558,2662.7,2662.6,0.0381677]
[1727228748910,5.111682,2662.7,2662.6,0.0381677]
[1727228749096,3.75558,2662.7,2662.6,0.0381677]
[1727228749439,3.75558,2662.7,2662.6,0.08400857]
[1727228749740,3.75558,2662.7,2662.6,0.0381677]
[1727228749951,6.75558,2662.7,2662.6,0.0381677]
[1727228750096,6.96188,2662.7,2662.6,0.0381677]
[1727228750298,8.959156,2662.7,2662.6,0.0381677]
[1727228750505,12.32353822,2662.7,2662.6,0.0381677]
[1727228750811,8.959156,2662.7,2662.6,0.0381677]
[1727228751123,8.752856,2662.7,2662.6,0.0381677]
[1727228751752,8.36165822,2662.7,2661.8,0.0381677]
[1727228752039,3.75661,2662.0,2661.8,0.8168677]
[1727228752194,3.75671,2661.9,2661.8,0.8168677]
[1727228753133,3.75661,2662.0,2661.8,0.8168677]
[1727228753441,3.75671,2661.9,2661.8,0.8168677]
[1727228755236,3.75661,2662.0,2661.8,0.8168677]
[1727228755643,3.75671,2661.9,2661.8,0.8168677]
[1727228755841,4.508042,2661.9,2661.8,0.0381677]
[1727228756152,5.058042,2661.9,2661.8,0.0381677]
[1727228756755,8.058042,2661.9,2661.8,0.0381677]
[1727228756920,8.264342,2661.9,2661.8,0.0381677]
[1727228757760,11.62872422,2661.9,2661.8,0.0381677]
[1727228760315,8.058042,2661.9,2661.8,0.0381677]
[1727228760831,3.75671,2661.9,2661.8,0.0381677]
[1727228761662,3.75637,2662.2,2661.8,0.0381677]
[1727228761866,3.75637,2662.2,2661.9,0.8175]
[1727228762035,3.75606,2662.4,2661.9,0.8175]
[1727228762247,3.57068222,2663.1,2661.9,0.8175]
[1727228762568,3.75653,2662.1,2662.0,0.05206328]
[1727228763127,3.75657,2662.0,2661.9,0.8175]
[1727228763334,4.30671,2661.9,2661.8,0.0381677]
[1727228763641,4.682367,2661.9,2661.8,0.0381677]
[1727228764626,7.682367,2661.9,2661.8,0.0381677]
[1727228764882,11.04674922,2661.9,2661.8,0.0381677]
[1727228765545,11.04674922,2661.9,2661.0,0.8556677]
[1727228765546,3.75784,2661.1,2661.0,0.0381677]
[1727228765758,7.30784,2661.1,2661.0,0.0381677]
[1727228765959,7.30784,2661.1,2661.0,0.094777]
[1727228766289,7.30784,2661.1,2661.0,0.0381677]
[1727228767356,7.30784,2661.1,2661.0,0.0176757]
[1727228767570,8.414393,2661.1,2661.0,0.0176757]
[1727228768073,8.620693,2661.1,2661.0,0.0176757]
[1727228769247,11.98507522,2661.1,2661.0,0.0176757]
[1727228769587,8.620693,2661.1,2661.0,0.0176757]
[1727228769743,11.98507522,2661.1,2661.0,0.0176757]
[1727228771772,11.43507522,2661.1,2661.0,0.0176757]
[1727228772094,3.75784,2661.1,2661.0,0.0176757]
[1727228773327,3.75769,2661.3,2661.0,0.06920012]
[1727228773566,3.75769,2661.3,2661.0,0.0176757]
[1727228773750,3.75769,2661.3,2661.1,0.86886212]
[1727228773952,3.75728,2661.5,2661.1,0.86886212]
[1727228774174,3.75662,2662.0,2661.1,0.86886212]
[1727228774378,3.75747,2661.4,2661.1,0.88653782]
[1727228774843,3.75735,2661.5,2661.1,0.88653782]
[1727228775042,3.75702,2661.7,2661.1,0.88653782]
[1727228775275,3.75702,2661.7,2661.2,0.7841]
[1727228775586,3.75685,2661.8,2661.3,0.05143687]
[1727228775798,3.75675,2661.9,2661.4,0.7841]
[1727228776259,3.75549,2662.8,2661.6,4.54115]
[1727228776260,3.7562,2662.3,2661.6,4.54115]
[1727228776461,3.7562,2662.3,2661.7,0.05599643]
[1727228776784,3.75583,2662.6,2662.0,3.7565]
[1727228777000,3.75563,2662.7,2662.0,3.7565]
[1727228777151,3.75601,2662.4,2662.1,0.04963452]
[1727228777352,3.75601,2662.4,2662.1,0.06204315]
[1727228777353,3.75629,2662.2,2662.1,0.06204315]
[1727228777581,3.75629,2662.2,2661.8,0.7841]
[1727228777782,3.75629,2662.2,2662.1,0.05514947]
[1727228777959,3.75629,2662.2,2661.8,0.7841]
[1727228777960,3.75643,2662.1,2661.8,0.7841]
[1727228778375,3.7567,2662.0,2661.8,0.7841]
[1727228778894,3.75671,2661.9,2661.8,0.7841]
[1727228779587,3.75725,2661.6,2661.4,0.7841]
[1727228780500,3.75725,2661.6,2661.1,0.7841]
[1727228780501,3.75742,2661.4,2661.1,0.7841]
[1727228782929,4.30742,2661.4,2661.1,0.7841]
[1727228783245,7.30742,2661.4,2660.8,0.7841]
[1727228783386,6.75742,2661.4,2660.8,0.7841]
[1727228783724,8.3964645,2661.4,2660.8,0.7841]
[1727228784079,8.3964645,2661.4,2660.6,0.0093963]
[1727228784080,11.96714672,2661.4,2660.6,0.0093963]
[1727228785403,4.5147,2660.7,2660.6,0.0093963]
[1727228785582,10.87908222,2660.7,2660.6,0.0093963]
[1727228785805,12.34281544,2660.7,2660.6,0.0093963]
[1727228787623,12.34281544,2660.7,2660.2,0.051084]
[1727228787624,6.75897,2660.3,2660.2,0.051084]
[1727228787809,10.67335222,2660.3,2660.2,0.051084]
[1727228788197,7.30897,2660.3,2660.2,0.051084]
[1727228788470,8.791631,2660.3,2660.2,0.051084]
[1727228789021,12.15601322,2660.3,2660.2,0.051084]
[1727228789260,8.791631,2660.3,2660.2,0.051084]
[1727228789930,12.15601322,2660.3,2660.2,0.051084]
[1727228794443,8.241631,2660.3,2660.2,0.051084]
[1727228794657,6.75897,2660.3,2660.2,0.051084]
[1727228794859,3.75897,2660.3,2660.2,0.051084]
[1727228798301,3.75883,2660.4,2660.2,0.051084]
[1727228798465,3.75883,2660.4,2660.3,0.85915851]
[1727228798865,3.75836,2660.8,2660.3,0.85915851]
[1727228799261,3.75883,2660.4,2660.3,0.85915851]
[1727228799692,3.75883,2660.4,2660.2,0.051084]
[1727228799896,3.75897,2660.3,2660.2,0.051084]
[1727228800975,4.30897,2660.3,2660.2,0.051084]
[1727228807514,3.7589,2660.4,2660.2,0.051084]
[1727228807814,3.75891,2660.4,2660.2,0.051084]
[1727228807973,3.75897,2660.3,2660.2,0.051084]
[1727228808370,0.2063,2661.2,2660.2,0.051084]
[1727228808371,3.75882,2660.5,2660.2,0.051084]
[1727228809220,3.75849,2660.7,2660.3,0.8078]
[1727228809399,3.75717,2661.6,2660.3,0.8078]
[1727228809400,1.95874801,2661.9,2660.3,0.8078]